[Event "Titled Tuesday Blitz August 17 2021"]
[White "Atabayev, Saparmyrat"]
[Black "Cunjalo, Faris"]
[WhiteFideId "14000571"]
[BlackFideId "14410710"]
[WhiteElo "2483"]
[BlackElo "2234"]
[Result "0-1"]
[Round "09"]
[TimeControl "180+1"]
[Date "2021.08.17"]
[WhiteClock "0:00:12"]
[BlackClock "0:00:14"]

1. e4 {[%clk 0:02:01]}  c5 {[%clk 0:02:54]} 2. Nf3 {[%clk 0:02:02]}  Nc6 {[%clk 0:02:53]} 3. d4 {[%clk 0:02:02]}  cxd4 {[%clk 0:02:54]} 4. Nxd4 {[%clk 0:02:03]}  Nf6 {[%clk 0:02:54]} 5. Nc3 {[%clk 0:02:04]}  d6 {[%clk 0:02:52]} 6. Bg5 {[%clk 0:02:03]}  e6 {[%clk 0:02:48]} 7. Qd2 {[%clk 0:02:01]}  a6 {[%clk 0:02:48]} 8. O-O-O {[%clk 0:02:01]}  Bd7 {[%clk 0:02:48]} 9. f4 {[%clk 0:02:01]}  b5 {[%clk 0:02:48]} 10. Nxc6 {[%clk 0:02:00]}  Bxc6 {[%clk 0:02:48]} 11. Bd3 {[%clk 0:02:01]}  Be7 {[%clk 0:02:44]} 12. Qe3 {[%clk 0:01:49]}  Ng4 {[%clk 0:02:35]} 13. Qg3 {[%clk 0:01:43]}  Bxg5 {[%clk 0:02:32]} 14. Qxg4 {[%clk 0:01:43]}  Bf6 {[%clk 0:02:28]} 15. e5 {[%clk 0:01:37]}  dxe5 {[%clk 0:02:28]} 16. Bxb5 {[%clk 0:01:37]}  Qb6 {[%clk 0:02:19]} 17. Bxc6+ {[%clk 0:01:35]}  Qxc6 {[%clk 0:02:20]} 18. f5 {[%clk 0:01:35]}  exf5 {[%clk 0:01:46]} 19. Qxf5 {[%clk 0:01:36]}  g6 {[%clk 0:01:40]} 20. Qf2 {[%clk 0:01:24]}  O-O {[%clk 0:01:38]} 21. Nd5 {[%clk 0:01:24]}  Bg5+ {[%clk 0:01:38]} 22. Kb1 {[%clk 0:01:24]}  Rad8 {[%clk 0:01:39]} 23. Qf3 {[%clk 0:01:18]}  Qe6 {[%clk 0:01:33]} 24. h4 {[%clk 0:01:18]}  e4 {[%clk 0:01:33]} 25. Qb3 {[%clk 0:01:18]}  Bh6 {[%clk 0:01:30]} 26. g4 {[%clk 0:01:17]}  Bg7 {[%clk 0:01:28]} 27. c3 {[%clk 0:00:50]}  Qxg4 {[%clk 0:01:19]} 28. h5 {[%clk 0:00:50]}  Qe6 {[%clk 0:00:57]} 29. hxg6 {[%clk 0:00:49]}  hxg6 {[%clk 0:00:58]} 30. Qb7 {[%clk 0:00:42]}  Rfe8 {[%clk 0:00:53]} 31. Nc7 {[%clk 0:00:30]}  Rxd1+ {[%clk 0:00:53]} 32. Rxd1 {[%clk 0:00:30]}  Qg4 {[%clk 0:00:53]} 33. Rf1 {[%clk 0:00:25]}  Qe2 {[%clk 0:00:48]} 34. Qxa6 {[%clk 0:00:25]}  Qxa6 {[%clk 0:00:46]} 35. Nxa6 {[%clk 0:00:25]}  f5 {[%clk 0:00:43]} 36. Kc2 {[%clk 0:00:24]}  e3 {[%clk 0:00:35]} 37. Nc5 {[%clk 0:00:20]}  e2 {[%clk 0:00:33]} 38. Re1 {[%clk 0:00:20]}  f4 {[%clk 0:00:34]} 39. Nd3 {[%clk 0:00:17]}  f3 {[%clk 0:00:34]} 40. a4 {[%clk 0:00:17]}  g5 {[%clk 0:00:21]} 41. Nf2 {[%clk 0:00:17]}  Be5 {[%clk 0:00:18]} 42. Rg1 {[%clk 0:00:17]}  Bf4 {[%clk 0:00:18]} 43. Nd3 {[%clk 0:00:16]}  f2 {[%clk 0:00:13]} 44. Nxf2 {[%clk 0:00:16]}  e1=Q {[%clk 0:00:13]} 45. Rxe1 {[%clk 0:00:17]}  Rxe1 {[%clk 0:00:14]} 46. Kd3 {[%clk 0:00:16]}  Re3+ {[%clk 0:00:13]} 47. Kd4 {[%clk 0:00:11]}  Re2 {[%clk 0:00:13]} 48. Nd3 {[%clk 0:00:11]}  Bb8 {[%clk 0:00:10]} 49. b4 {[%clk 0:00:09]}  g4 {[%clk 0:00:11]} 50. c4 {[%clk 0:00:08]}  g3 {[%clk 0:00:11]} 51. c5 {[%clk 0:00:09]}  g2 {[%clk 0:00:11]} 52. Kd5 {[%clk 0:00:10]}  g1=Q {[%clk 0:00:12]} 53. c6 {[%clk 0:00:10]}  Rd2 {[%clk 0:00:11]} 54. Kc4 {[%clk 0:00:10]}  Qf1 {[%clk 0:00:11]} 55. Kb5 {[%clk 0:00:11]}  Qxd3+ {[%clk 0:00:12]} 56. Kb6 {[%clk 0:00:11]}  Qd4+ {[%clk 0:00:12]} 57. Kb7 {[%clk 0:00:12]}  Qa7+ {[%clk 0:00:13]} 58. Kc8 {[%clk 0:00:12]}  Qc7# {[%clk 0:00:14]} 0-1


[Site "https://www.chess.com"]

[Event "Titled Tuesday Blitz August 17 2021"]
[White "Brunner, Nicolas"]
[Black "Ovetchkin, Roman"]
[WhiteFideId "620246"]
[BlackFideId "4119991"]
[WhiteElo "2372"]
[BlackElo "2432"]
[Result "0-1"]
[Round "09"]
[TimeControl "180+1"]
[Date "2021.08.17"]
[WhiteClock "0:00:01"]
[BlackClock "0:00:52"]

1. d4 {[%clk 0:03:00]}  Nf6 {[%clk 0:02:59]} 2. c4 {[%clk 0:03:01]}  g6 {[%clk 0:02:59]} 3. Nc3 {[%clk 0:03:00]}  Bg7 {[%clk 0:03:00]} 4. e4 {[%clk 0:03:00]}  d6 {[%clk 0:03:00]} 5. Nf3 {[%clk 0:03:01]}  O-O {[%clk 0:03:01]} 6. Be2 {[%clk 0:03:01]}  e5 {[%clk 0:03:00]} 7. d5 {[%clk 0:03:02]}  a5 {[%clk 0:02:59]} 8. Bg5 {[%clk 0:02:52]}  h6 {[%clk 0:02:59]} 9. Bh4 {[%clk 0:02:52]}  Qe8 {[%clk 0:02:51]} 10. Nd2 {[%clk 0:02:48]}  Na6 {[%clk 0:02:51]} 11. O-O {[%clk 0:02:47]}  Bd7 {[%clk 0:02:49]} 12. a3 {[%clk 0:02:44]}  Nh7 {[%clk 0:02:40]} 13. Kh1 {[%clk 0:02:37]}  h5 {[%clk 0:02:39]} 14. f3 {[%clk 0:02:33]}  Bh6 {[%clk 0:02:39]} 15. Nb5 {[%clk 0:02:32]}  Be3 {[%clk 0:02:27]} 16. Rb1 {[%clk 0:02:30]}  f5 {[%clk 0:01:59]} 17. b4 {[%clk 0:02:26]}  f4 {[%clk 0:01:54]} 18. Be1 {[%clk 0:02:10]}  g5 {[%clk 0:01:53]} 19. bxa5 {[%clk 0:01:57]}  Qe7 {[%clk 0:01:47]} 20. Nb3 {[%clk 0:01:53]}  Kh8 {[%clk 0:01:31]} 21. Bb4 {[%clk 0:01:42]}  Rf6 {[%clk 0:01:23]} 22. h3 {[%clk 0:01:13]}  Rg8 {[%clk 0:01:21]} 23. c5 {[%clk 0:00:55]}  Nxb4 {[%clk 0:01:13]} 24. axb4 {[%clk 0:00:54]}  g4 {[%clk 0:01:14]} 25. fxg4 {[%clk 0:00:51]}  hxg4 {[%clk 0:01:14]} 26. Kh2 {[%clk 0:00:13]}  Rh6 {[%clk 0:01:11]} 27. Nxc7 {[%clk 0:00:06]}  Rxh3+ {[%clk 0:01:03]} 28. gxh3 {[%clk 0:00:05]}  Qh4 {[%clk 0:01:03]} 29. Bxg4 {[%clk 0:00:01]}  Qg3+ {[%clk 0:00:52]} 30. Kh1 {[%clk 0:00:01]}  Bxg4 {[%clk 0:00:52]} 0-1


[Site "https://www.chess.com"]

[Event "Titled Tuesday Blitz August 17 2021"]
[White "Bures, Vit"]
[Black "Bongo Akanga Ndjila, Barthelemy"]
[WhiteFideId "309052"]
[BlackFideId "10609431"]
[WhiteElo "2123"]
[BlackElo "1803"]
[Result "1-0"]
[Round "09"]
[TimeControl "180+1"]
[Date "2021.08.18"]
[WhiteClock "0:00:05"]
[BlackClock "0:00:19"]

1. d4 {[%clk 0:03:00]}  Nf6 {[%clk 0:02:56]} 2. c4 {[%clk 0:03:00]}  e6 {[%clk 0:02:56]} 3. Nc3 {[%clk 0:02:59]}  d5 {[%clk 0:02:57]} 4. cxd5 {[%clk 0:02:59]}  exd5 {[%clk 0:02:56]} 5. Bg5 {[%clk 0:02:59]}  c6 {[%clk 0:02:56]} 6. e3 {[%clk 0:02:59]}  Nbd7 {[%clk 0:02:56]} 7. Bd3 {[%clk 0:02:58]}  Bd6 {[%clk 0:02:54]} 8. Nge2 {[%clk 0:02:57]}  O-O {[%clk 0:02:53]} 9. Qc2 {[%clk 0:02:48]}  Be7 {[%clk 0:02:48]} 10. O-O {[%clk 0:02:45]}  Re8 {[%clk 0:02:47]} 11. h3 {[%clk 0:02:41]}  Nf8 {[%clk 0:02:47]} 12. Bf4 {[%clk 0:02:25]}  Ne6 {[%clk 0:02:44]} 13. Bh2 {[%clk 0:02:18]}  g6 {[%clk 0:02:44]} 14. f4 {[%clk 0:02:10]}  Ng7 {[%clk 0:02:44]} 15. g4 {[%clk 0:02:09]}  Bd6 {[%clk 0:02:38]} 16. e4 {[%clk 0:02:02]}  dxe4 {[%clk 0:02:37]} 17. Nxe4 {[%clk 0:02:02]}  Nxe4 {[%clk 0:02:36]} 18. Bxe4 {[%clk 0:02:03]}  Qe7 {[%clk 0:02:26]} 19. Nc3 {[%clk 0:01:59]}  Bb4 {[%clk 0:02:22]} 20. Rae1 {[%clk 0:01:55]}  Qd8 {[%clk 0:02:10]} 21. Qf2 {[%clk 0:01:48]}  Be6 {[%clk 0:02:06]} 22. f5 {[%clk 0:01:43]}  Bc4 {[%clk 0:02:06]} 23. fxg6 {[%clk 0:01:38]}  fxg6 {[%clk 0:02:01]} 24. Be5 {[%clk 0:01:26]}  Rf8 {[%clk 0:02:01]} 25. Qg2 {[%clk 0:01:20]}  Bxf1 {[%clk 0:02:00]} 26. Rxf1 {[%clk 0:01:20]}  Rxf1+ {[%clk 0:01:59]} 27. Qxf1 {[%clk 0:01:21]}  Ne6 {[%clk 0:01:52]} 28. Qc4 {[%clk 0:01:15]}  Qe7 {[%clk 0:01:43]} 29. Ne2 {[%clk 0:00:40]}  Rd8 {[%clk 0:01:39]} 30. Nf4 {[%clk 0:00:35]}  Re8 {[%clk 0:01:39]} 31. Nxe6 {[%clk 0:00:33]}  Qxe6 {[%clk 0:01:39]} 32. Qxb4 {[%clk 0:00:33]}  b6 {[%clk 0:01:31]} 33. Qa4 {[%clk 0:00:22]}  c5 {[%clk 0:01:30]} 34. Qxa7 {[%clk 0:00:22]}  Re7 {[%clk 0:01:25]} 35. Qa8+ {[%clk 0:00:20]}  Re8 {[%clk 0:01:25]} 36. Qd5 {[%clk 0:00:10]}  Kf7 {[%clk 0:01:12]} 37. Kg2 {[%clk 0:00:04]}  cxd4 {[%clk 0:01:11]} 38. Bxd4 {[%clk 0:00:01]}  Qxd5 {[%clk 0:00:58]} 39. Bxd5+ {[%clk 0:00:01]}  Ke7 {[%clk 0:00:58]} 40. Bxb6 {[%clk 0:00:01]}  Kd6 {[%clk 0:00:56]} 41. Bc4 {[%clk 0:00:01]}  Rb8 {[%clk 0:00:53]} 42. Bd4 {[%clk 0:00:01]}  Rb4 {[%clk 0:00:50]} 43. b3 {[%clk 0:00:02]}  Rb8 {[%clk 0:00:47]} 44. Kf3 {[%clk 0:00:02]}  Rf8+ {[%clk 0:00:46]} 45. Ke3 {[%clk 0:00:02]}  Re8+ {[%clk 0:00:45]} 46. Kd3 {[%clk 0:00:02]}  Rf8 {[%clk 0:00:43]} 47. a4 {[%clk 0:00:03]}  Rf3+ {[%clk 0:00:43]} 48. Ke4 {[%clk 0:00:03]}  Rxh3 {[%clk 0:00:42]} 49. a5 {[%clk 0:00:03]}  Kc6 {[%clk 0:00:36]} 50. a6 {[%clk 0:00:03]}  Rh2 {[%clk 0:00:33]} 51. a7 {[%clk 0:00:03]}  Ra2 {[%clk 0:00:33]} 52. a8=Q+ {[%clk 0:00:03]}  Rxa8 {[%clk 0:00:32]} 53. Bd5+ {[%clk 0:00:03]}  Kb5 {[%clk 0:00:30]} 54. Bxa8 {[%clk 0:00:04]}  h5 {[%clk 0:00:28]} 55. Bd5 {[%clk 0:00:05]}  hxg4 {[%clk 0:00:27]} 56. Kf4 {[%clk 0:00:05]}  Kb4 {[%clk 0:00:28]} 57. Kxg4 {[%clk 0:00:05]}  Kb5 {[%clk 0:00:22]} 58. Kg5 {[%clk 0:00:06]}  Kb4 {[%clk 0:00:22]} 59. Kxg6 {[%clk 0:00:06]}  Kb5 {[%clk 0:00:23]} 60. Kf5 {[%clk 0:00:07]}  Kb4 {[%clk 0:00:24]} 61. Ke4 {[%clk 0:00:08]}  Kb5 {[%clk 0:00:24]} 62. Kd3 {[%clk 0:00:09]}  Kb4 {[%clk 0:00:25]} 63. Kc2 {[%clk 0:00:09]}  Ka3 {[%clk 0:00:25]} 64. Kc3 {[%clk 0:00:05]}  Ka2 {[%clk 0:00:16]} 65. b4+ {[%clk 0:00:06]}  Ka3 {[%clk 0:00:17]} 66. b5 {[%clk 0:00:05]}  Ka4 {[%clk 0:00:18]} 67. b6 {[%clk 0:00:05]}  Ka5 {[%clk 0:00:19]} 68. b7 {[%clk 0:00:05]}  Ka6 {[%clk 0:00:20]} 69. b8=Q {[%clk 0:00:03]}  Ka5 {[%clk 0:00:20]} 70. Qa7+ {[%clk 0:00:03]}  Kb5 {[%clk 0:00:19]} 71. Qb6+ {[%clk 0:00:04]}  Ka4 {[%clk 0:00:19]} 72. Qb4# {[%clk 0:00:05]} 1-0


[Site "https://www.chess.com"]

[Event "Titled Tuesday Blitz August 17 2021"]
[White "Demchenko, Anton"]
[Black "Tristan, Leonardo"]
[WhiteFideId "4160258"]
[BlackFideId "113816"]
[WhiteElo "2583"]
[BlackElo "2404"]
[Result "0-1"]
[Round "09"]
[TimeControl "180+1"]
[Date "2021.08.17"]
[WhiteClock "0:00:14"]
[BlackClock "0:00:17"]

1. e4 {[%clk 0:03:00]}  d5 {[%clk 0:03:00]} 2. exd5 {[%clk 0:03:00]}  Qxd5 {[%clk 0:03:01]} 3. Nc3 {[%clk 0:03:00]}  Qa5 {[%clk 0:03:01]} 4. d4 {[%clk 0:03:00]}  Nf6 {[%clk 0:03:01]} 5. Nf3 {[%clk 0:03:00]}  Bf5 {[%clk 0:03:02]} 6. Bd2 {[%clk 0:02:52]}  e6 {[%clk 0:02:55]} 7. Ne4 {[%clk 0:02:48]}  Qb6 {[%clk 0:02:54]} 8. Nxf6+ {[%clk 0:02:46]}  gxf6 {[%clk 0:02:55]} 9. Be2 {[%clk 0:02:14]}  Nc6 {[%clk 0:02:36]} 10. c3 {[%clk 0:02:09]}  Qxb2 {[%clk 0:02:27]} 11. O-O {[%clk 0:02:08]}  O-O-O {[%clk 0:02:22]} 12. Nh4 {[%clk 0:02:06]}  Bc2 {[%clk 0:02:22]} 13. Qe1 {[%clk 0:02:05]}  e5 {[%clk 0:02:13]} 14. Bg4+ {[%clk 0:01:26]}  Kb8 {[%clk 0:02:13]} 15. Bf3 {[%clk 0:01:27]}  exd4 {[%clk 0:02:05]} 16. Bxc6 {[%clk 0:01:26]}  bxc6 {[%clk 0:02:06]} 17. cxd4 {[%clk 0:01:25]}  Qxd4 {[%clk 0:02:04]} 18. Nf3 {[%clk 0:01:23]}  Qd5 {[%clk 0:02:00]} 19. Qc1 {[%clk 0:00:59]}  Be4 {[%clk 0:01:53]} 20. Qb2+ {[%clk 0:00:59]}  Kc8 {[%clk 0:01:22]} 21. Rab1 {[%clk 0:00:40]}  Bxf3 {[%clk 0:01:07]} 22. Bf4 {[%clk 0:00:38]}  Bd6 {[%clk 0:00:36]} 23. gxf3 {[%clk 0:00:37]}  Bxf4 {[%clk 0:00:30]} 24. Qb7+ {[%clk 0:00:27]}  Kd7 {[%clk 0:00:30]} 25. Rfd1 {[%clk 0:00:28]}  Rhg8+ {[%clk 0:00:24]} 26. Kh1 {[%clk 0:00:13]}  Bd2 {[%clk 0:00:24]} 27. Rb3 {[%clk 0:00:14]}  Rb8 {[%clk 0:00:17]} 0-1


[Site "https://www.chess.com"]

[Event "Titled Tuesday Blitz August 17 2021"]
[White "Diakonova, Ekaterina"]
[Black "Dahanayake, Isara Banidu"]
[WhiteFideId "24172936"]
[BlackFideId "9932631"]
[WhiteElo "2102"]
[BlackElo "1394"]
[Result "0-1"]
[Round "09"]
[TimeControl "180+1"]
[Date "2021.08.18"]
[WhiteClock "0:00:02"]
[BlackClock "0:00:13"]

1. Nf3 {[%clk 0:03:00]}  Nf6 {[%clk 0:02:59]} 2. g3 {[%clk 0:03:01]}  g6 {[%clk 0:02:59]} 3. b3 {[%clk 0:03:01]}  Bg7 {[%clk 0:03:00]} 4. Bb2 {[%clk 0:03:02]}  O-O {[%clk 0:03:00]} 5. Bg2 {[%clk 0:03:02]}  d6 {[%clk 0:03:01]} 6. O-O {[%clk 0:03:02]}  e5 {[%clk 0:03:01]} 7. d4 {[%clk 0:03:02]}  e4 {[%clk 0:02:59]} 8. Nfd2 {[%clk 0:03:00]}  d5 {[%clk 0:02:59]} 9. e3 {[%clk 0:02:58]}  Bg4 {[%clk 0:02:58]} 10. Qe1 {[%clk 0:02:56]}  Qd7 {[%clk 0:02:57]} 11. c4 {[%clk 0:02:53]}  c6 {[%clk 0:02:57]} 12. Nc3 {[%clk 0:02:53]}  Na6 {[%clk 0:02:55]} 13. a3 {[%clk 0:02:53]}  Bh3 {[%clk 0:02:53]} 14. Qe2 {[%clk 0:02:47]}  Bg4 {[%clk 0:02:40]} 15. f3 {[%clk 0:02:40]}  exf3 {[%clk 0:02:38]} 16. Nxf3 {[%clk 0:02:40]}  Rfe8 {[%clk 0:02:36]} 17. Qf2 {[%clk 0:02:33]}  Bxf3 {[%clk 0:02:27]} 18. Bxf3 {[%clk 0:02:22]}  Nc7 {[%clk 0:02:16]} 19. Rae1 {[%clk 0:02:16]}  Ne6 {[%clk 0:02:02]} 20. h4 {[%clk 0:02:01]}  h5 {[%clk 0:01:45]} 21. Rd1 {[%clk 0:01:18]}  Nc7 {[%clk 0:01:33]} 22. Rfe1 {[%clk 0:01:16]}  Qf5 {[%clk 0:01:24]} 23. Ne2 {[%clk 0:00:35]}  Bh6 {[%clk 0:01:12]} 24. Nf4 {[%clk 0:00:32]}  Ne4 {[%clk 0:01:10]} 25. Bxe4 {[%clk 0:00:32]}  Qxe4 {[%clk 0:01:10]} 26. Rf1 {[%clk 0:00:27]}  Re7 {[%clk 0:01:10]} 27. Bc1 {[%clk 0:00:27]}  Rae8 {[%clk 0:01:07]} 28. a4 {[%clk 0:00:26]}  Ne6 {[%clk 0:00:56]} 29. Ba3 {[%clk 0:00:23]}  Nxf4 {[%clk 0:00:49]} 30. exf4 {[%clk 0:00:19]}  Re6 {[%clk 0:00:46]} 31. Bc1 {[%clk 0:00:17]}  Qf5 {[%clk 0:00:42]} 32. Qf3 {[%clk 0:00:16]}  Re4 {[%clk 0:00:42]} 33. Rf2 {[%clk 0:00:15]}  Bg7 {[%clk 0:00:41]} 34. Bb2 {[%clk 0:00:14]}  Re3 {[%clk 0:00:40]} 35. Qg2 {[%clk 0:00:13]}  Rxb3 {[%clk 0:00:39]} 36. cxd5 {[%clk 0:00:12]}  cxd5 {[%clk 0:00:38]} 37. Rc1 {[%clk 0:00:11]}  Rxb2 {[%clk 0:00:32]} 38. Rxb2 {[%clk 0:00:11]}  Bxd4+ {[%clk 0:00:32]} 39. Kh2 {[%clk 0:00:10]}  Bxb2 {[%clk 0:00:31]} 40. Qxb2 {[%clk 0:00:11]}  Qd3 {[%clk 0:00:30]} 41. Kh3 {[%clk 0:00:10]}  Qf5+ {[%clk 0:00:24]} 42. Kh2 {[%clk 0:00:10]}  Qe4 {[%clk 0:00:23]} 43. Kh3 {[%clk 0:00:09]}  Qe6+ {[%clk 0:00:22]} 44. f5 {[%clk 0:00:05]}  Qxf5+ {[%clk 0:00:21]} 45. Kh2 {[%clk 0:00:05]}  Qe6 {[%clk 0:00:20]} 46. Kh1 {[%clk 0:00:03]}  Qe4+ {[%clk 0:00:20]} 47. Kg1 {[%clk 0:00:03]}  d4 {[%clk 0:00:20]} 48. Rf1 {[%clk 0:00:02]}  d3 {[%clk 0:00:17]} 49. Qf6 {[%clk 0:00:01]}  Qe3+ {[%clk 0:00:17]} 50. Kh1 {[%clk 0:00:01]}  Qe4+ {[%clk 0:00:17]} 51. Kh2 {[%clk 0:00:02]}  Qe6 {[%clk 0:00:17]} 52. Qg5 {[%clk 0:00:02]}  Qe2+ {[%clk 0:00:17]} 53. Kg1 {[%clk 0:00:02]}  d2 {[%clk 0:00:15]} 54. Qf6 {[%clk 0:00:01]}  Qxf1+ {[%clk 0:00:14]} 55. Kxf1 {[%clk 0:00:01]}  d1=Q+ {[%clk 0:00:14]} 56. Kg2 {[%clk 0:00:02]}  Qe2+ {[%clk 0:00:13]} 57. Kh3 {[%clk 0:00:02]}  Qe6+ {[%clk 0:00:13]} 0-1


[Site "https://www.chess.com"]

[Event "Titled Tuesday Blitz August 17 2021"]
[White "Wagner, Dinara"]
[Black "Garv Gaur"]
[WhiteFideId "24157570"]
[BlackFideId "45030839"]
[WhiteElo "2260"]
[BlackElo "1950"]
[Result "0-1"]
[Round "09"]
[TimeControl "180+1"]
[Date "2021.08.17"]
[WhiteClock "0:00:02"]
[BlackClock "0:00:04"]

1. d4 {[%clk 0:02:55]}  d5 {[%clk 0:02:59]} 2. c4 {[%clk 0:02:55]}  e6 {[%clk 0:02:58]} 3. Nf3 {[%clk 0:02:55]}  Nf6 {[%clk 0:02:59]} 4. g3 {[%clk 0:02:55]}  Bb4+ {[%clk 0:02:59]} 5. Bd2 {[%clk 0:02:54]}  Be7 {[%clk 0:02:59]} 6. Bg2 {[%clk 0:02:54]}  O-O {[%clk 0:02:59]} 7. O-O {[%clk 0:02:53]}  Nbd7 {[%clk 0:02:59]} 8. Qc2 {[%clk 0:02:53]}  c6 {[%clk 0:02:57]} 9. a3 {[%clk 0:02:50]}  b6 {[%clk 0:02:56]} 10. cxd5 {[%clk 0:02:50]}  cxd5 {[%clk 0:02:55]} 11. Rc1 {[%clk 0:02:47]}  Ba6 {[%clk 0:02:51]} 12. Bb4 {[%clk 0:02:48]}  Rc8 {[%clk 0:02:44]} 13. Nc3 {[%clk 0:02:47]}  Ne4 {[%clk 0:02:39]} 14. Qa4 {[%clk 0:02:35]}  Nxc3 {[%clk 0:02:27]} 15. Qxa6 {[%clk 0:02:32]}  Bxb4 {[%clk 0:02:17]} 16. axb4 {[%clk 0:02:30]}  Nb8 {[%clk 0:02:03]} 17. Qd3 {[%clk 0:02:25]}  Ne4 {[%clk 0:02:03]} 18. Ne5 {[%clk 0:02:18]}  Rxc1+ {[%clk 0:01:54]} 19. Rxc1 {[%clk 0:02:17]}  f5 {[%clk 0:01:47]} 20. Qc2 {[%clk 0:02:03]}  Qd6 {[%clk 0:01:12]} 21. Qa4 {[%clk 0:01:26]}  a6 {[%clk 0:01:06]} 22. b5 {[%clk 0:01:22]}  a5 {[%clk 0:00:42]} 23. Nc6 {[%clk 0:01:21]}  Nd2 {[%clk 0:00:32]} 24. Ne5 {[%clk 0:01:01]}  Ne4 {[%clk 0:00:15]} 25. e3 {[%clk 0:01:00]}  g5 {[%clk 0:00:13]} 26. Qc2 {[%clk 0:00:57]}  g4 {[%clk 0:00:13]} 27. Qc7 {[%clk 0:00:57]}  Qxc7 {[%clk 0:00:12]} 28. Rxc7 {[%clk 0:00:56]}  Nd6 {[%clk 0:00:12]} 29. Bf1 {[%clk 0:00:55]}  Rc8 {[%clk 0:00:11]} 30. Re7 {[%clk 0:00:42]}  Re8 {[%clk 0:00:11]} 31. Rc7 {[%clk 0:00:17]}  Rc8 {[%clk 0:00:11]} 32. Rxc8+ {[%clk 0:00:18]}  Nxc8 {[%clk 0:00:12]} 33. Kg2 {[%clk 0:00:18]}  Nd6 {[%clk 0:00:11]} 34. f3 {[%clk 0:00:18]}  Kf8 {[%clk 0:00:11]} 35. fxg4 {[%clk 0:00:18]}  fxg4 {[%clk 0:00:12]} 36. Nxg4 {[%clk 0:00:18]}  Nd7 {[%clk 0:00:12]} 37. Bd3 {[%clk 0:00:18]}  h5 {[%clk 0:00:12]} 38. Nf2 {[%clk 0:00:17]}  Nf6 {[%clk 0:00:12]} 39. h3 {[%clk 0:00:17]}  Kg7 {[%clk 0:00:12]} 40. Nd1 {[%clk 0:00:16]}  Nfe4 {[%clk 0:00:08]} 41. Nf2 {[%clk 0:00:16]}  Nd2 {[%clk 0:00:08]} 42. Nd1 {[%clk 0:00:14]}  N2c4 {[%clk 0:00:08]} 43. Kf3 {[%clk 0:00:14]}  Nxb5 {[%clk 0:00:08]} 44. Kf4 {[%clk 0:00:12]}  Nbd6 {[%clk 0:00:07]} 45. Kg5 {[%clk 0:00:12]}  b5 {[%clk 0:00:07]} 46. Kxh5 {[%clk 0:00:12]}  b4 {[%clk 0:00:07]} 47. Kg5 {[%clk 0:00:12]}  a4 {[%clk 0:00:08]} 48. h4 {[%clk 0:00:09]}  b3 {[%clk 0:00:07]} 49. h5 {[%clk 0:00:08]}  Nxb2 {[%clk 0:00:04]} 50. Nxb2 {[%clk 0:00:08]}  a3 {[%clk 0:00:05]} 51. h6+ {[%clk 0:00:04]}  Kh8 {[%clk 0:00:05]} 52. Na4 {[%clk 0:00:03]}  a2 {[%clk 0:00:04]} 53. Nc5 {[%clk 0:00:03]}  a1=Q {[%clk 0:00:04]} 54. Nxe6 {[%clk 0:00:04]}  Qc1 {[%clk 0:00:03]} 55. Nf4 {[%clk 0:00:04]}  Qxe3 {[%clk 0:00:03]} 56. Bb1 {[%clk 0:00:04]}  Nf7+ {[%clk 0:00:03]} 57. Kh5 {[%clk 0:00:03]}  Nxh6 {[%clk 0:00:03]} 58. Ng6+ {[%clk 0:00:02]}  Kg7 {[%clk 0:00:03]} 59. Nf4 {[%clk 0:00:02]}  Qf3+ {[%clk 0:00:03]} 60. Kg5 {[%clk 0:00:02]}  Qg4# {[%clk 0:00:04]} 0-1


[Site "https://www.chess.com"]

[Event "Titled Tuesday Blitz August 17 2021"]
[White "Drygalov, Sergey"]
[Black "Batsuren, Dambasuren"]
[WhiteFideId "24171743"]
[BlackFideId "4902920"]
[WhiteElo "2514"]
[BlackElo "2371"]
[Result "0-1"]
[Round "09"]
[TimeControl "180+1"]
[Date "2021.08.17"]
[WhiteClock "0:00:02"]
[BlackClock "0:00:03"]

1. e4 {[%clk 0:03:00]}  c6 {[%clk 0:03:00]} 2. d4 {[%clk 0:02:58]}  d5 {[%clk 0:03:01]} 3. e5 {[%clk 0:02:57]}  Bf5 {[%clk 0:03:00]} 4. Bd3 {[%clk 0:02:57]}  Bxd3 {[%clk 0:03:00]} 5. Qxd3 {[%clk 0:02:58]}  e6 {[%clk 0:03:00]} 6. Nf3 {[%clk 0:02:55]}  Nd7 {[%clk 0:02:58]} 7. O-O {[%clk 0:02:54]}  h6 {[%clk 0:02:57]} 8. c4 {[%clk 0:02:51]}  dxc4 {[%clk 0:02:47]} 9. Qxc4 {[%clk 0:02:52]}  Nb6 {[%clk 0:02:47]} 10. Qe2 {[%clk 0:02:52]}  Ne7 {[%clk 0:02:46]} 11. Nc3 {[%clk 0:02:53]}  Nf5 {[%clk 0:02:44]} 12. Rd1 {[%clk 0:02:53]}  Be7 {[%clk 0:02:43]} 13. h3 {[%clk 0:02:43]}  O-O {[%clk 0:02:43]} 14. Bf4 {[%clk 0:02:37]}  Nd5 {[%clk 0:02:42]} 15. Bd2 {[%clk 0:02:36]}  Nh4 {[%clk 0:02:38]} 16. Nh2 {[%clk 0:02:33]}  Ng6 {[%clk 0:02:37]} 17. Ng4 {[%clk 0:02:29]}  Kh7 {[%clk 0:02:21]} 18. Qf3 {[%clk 0:02:23]}  Nxc3 {[%clk 0:02:18]} 19. bxc3 {[%clk 0:02:21]}  Qd5 {[%clk 0:02:19]} 20. Qe2 {[%clk 0:02:21]}  b5 {[%clk 0:02:12]} 21. g3 {[%clk 0:02:13]}  Rfd8 {[%clk 0:01:55]} 22. h4 {[%clk 0:02:13]}  c5 {[%clk 0:01:48]} 23. h5 {[%clk 0:01:59]}  Nf8 {[%clk 0:01:43]} 24. Be3 {[%clk 0:01:43]}  c4 {[%clk 0:01:22]} 25. f3 {[%clk 0:01:38]}  a5 {[%clk 0:01:22]} 26. Rf1 {[%clk 0:01:22]}  Nd7 {[%clk 0:01:21]} 27. Qc2+ {[%clk 0:01:07]}  Kh8 {[%clk 0:01:18]} 28. f4 {[%clk 0:00:59]}  b4 {[%clk 0:01:08]} 29. f5 {[%clk 0:00:59]}  exf5 {[%clk 0:00:42]} 30. Rxf5 {[%clk 0:00:58]}  bxc3 {[%clk 0:00:33]} 31. Raf1 {[%clk 0:00:57]}  Rab8 {[%clk 0:00:33]} 32. Qxc3 {[%clk 0:00:50]}  Nf8 {[%clk 0:00:20]} 33. Rxf7 {[%clk 0:00:43]}  Qe6 {[%clk 0:00:17]} 34. Nh2 {[%clk 0:00:19]}  Nh7 {[%clk 0:00:17]} 35. Qc2 {[%clk 0:00:19]}  Bg5 {[%clk 0:00:15]} 36. Qf2 {[%clk 0:00:06]}  Bxe3 {[%clk 0:00:13]} 37. Qxe3 {[%clk 0:00:07]}  Ng5 {[%clk 0:00:13]} 38. R7f5 {[%clk 0:00:05]}  Kg8 {[%clk 0:00:09]} 39. Ng4 {[%clk 0:00:06]}  Rb2 {[%clk 0:00:07]} 40. Nf6+ {[%clk 0:00:03]}  gxf6 {[%clk 0:00:07]} 41. Rxf6 {[%clk 0:00:03]}  Qh3 {[%clk 0:00:01]} 42. Rg6+ {[%clk 0:00:02]}  Kh7 {[%clk 0:00:02]} 43. Rxh6+ {[%clk 0:00:01]}  Kxh6 {[%clk 0:00:03]} 44. Rf6+ {[%clk 0:00:02]}  Kh7 {[%clk 0:00:03]} 45. Qe4+ {[%clk 0:00:02]}  Nxe4 {[%clk 0:00:03]} 0-1


[Site "https://www.chess.com"]